fUSD/lending_fUSD_20241022
["ID","MTS","AMOUNT","RATE_DAILY","PERIOD"]
[340649662,1729595142567,-266.48,0.00084179,30]
[340649663,1729595142587,-250.0,0.00084977,120]
[340649664,1729595142608,-174.37,0.00085169,2]
[340649665,1729595142627,-100.29959823,0.00087815,2]
[340649666,1729595150140,-200.0,0.0006,120]
[340649667,1729595150166,-417.0,0.00082191,120]
[340649668,1729595150186,-399.70040177,0.00087815,2]
[340649669,1729595150206,-1000.0,0.00089185,2]
[340649670,1729595150228,-330.0,0.0009,30]
[340649671,1729595150250,-177.0,0.00090411,120]
[340649672,1729595150270,-177.0,0.00090411,120]
[340649673,1729595150290,-177.0,0.00090411,120]
[340649674,1729595150310,-177.0,0.00090411,120]
[340649675,1729595150333,-177.0,0.00090411,120]
[340649676,1729595150353,-177.0,0.00090411,120]
[340649677,1729595150374,-177.0,0.00090411,120]
[340649678,1729595150395,-177.0,0.00090411,120]
[340649679,1729595150416,-177.0,0.00090411,120]
[340649680,1729595150439,-177.0,0.00090411,120]
[340649681,1729595150460,-177.0,0.00090411,120]
[340649682,1729595150481,-177.0,0.00090411,120]
[340649683,1729595150503,-177.0,0.00090411,120]
[340649684,1729595150527,-177.0,0.00090411,120]
[340649685,1729595150549,-177.0,0.00090411,120]
[340649686,1729595150571,-177.0,0.00090411,120]
[340649687,1729595150591,-177.0,0.00090411,120]
[340649688,1729595150612,-153.0,0.00090411,120]
[340649689,1729595150633,-153.0,0.00090411,120]
[340649690,1729595150654,-153.0,0.00090411,120]
[340649691,1729595150675,-153.0,0.00090411,120]
[340649692,1729595150695,-153.0,0.00090411,120]
[340649693,1729595150715,-153.0,0.00090411,120]
[340649694,1729595150734,-153.0,0.00090411,120]
[340649695,1729595150755,-153.0,0.00090411,120]
[340649696,1729595150777,-153.0,0.00090411,120]
[340649697,1729595150798,-153.0,0.00090411,120]
[340649698,1729595150819,-153.0,0.00090411,120]
[340649699,1729595150839,-153.0,0.00090411,120]
[340649700,1729595150860,-153.0,0.00090411,120]
[340649701,1729595150880,-153.0,0.00090411,120]
[340649702,1729595150900,-153.0,0.00090411,120]
[340649703,1729595150920,-153.0,0.00090411,120]
[340649704,1729595150940,-153.0,0.00090411,120]
[340649705,1729595150962,-153.0,0.00090411,120]
[340649706,1729595150982,-153.0,0.00090411,120]
[340649707,1729595151002,-153.0,0.00090411,120]
[340649708,1729595151024,-153.0,0.00090411,120]
[340649709,1729595151044,-153.0,0.00090411,120]
[340649710,1729595151063,-153.0,0.00090411,120]
[340649711,1729595151084,-153.0,0.00090411,120]
[340649712,1729595151103,-153.0,0.00090411,120]
[340649713,1729595151122,-153.0,0.00090411,120]
[340649714,1729595151142,-153.0,0.00090411,120]
[340649715,1729595151166,-153.0,0.00090411,120]
[340649716,1729595151186,-153.0,0.00090411,120]
[340649717,1729595151206,-153.0,0.00090411,120]
[340649718,1729595151227,-153.0,0.00090411,120]
[340649719,1729595151248,-153.0,0.00090411,120]
[340649720,1729595151271,-153.0,0.00090411,120]
[340649721,1729595151290,-153.0,0.00090411,120]
[340649722,1729595151311,-153.0,0.00090411,120]
[340649723,1729595151333,-153.0,0.00090411,120]
[340649724,1729595151352,-153.0,0.00090411,120]
[340649725,1729595151372,-153.0,0.00090411,120]
[340649726,1729595151392,-153.0,0.00090411,120]
[340649727,1729595151414,-153.0,0.00090411,120]
[340649728,1729595151435,-153.0,0.00090411,120]
[340649729,1729595151456,-153.0,0.00090411,120]
[340649730,1729595151476,-153.0,0.00090411,120]
[340649731,1729595151497,-153.0,0.00090411,120]
[340649732,1729595151518,-153.0,0.00090411,120]
[340649733,1729595151538,-153.0,0.00090411,120]
[340649734,1729595151558,-153.0,0.00090411,120]
[340649735,1729595151578,-153.0,0.00090411,120]
[340649736,1729595151597,-153.0,0.00090411,120]
[340649737,1729595151617,-153.0,0.00090411,120]
[340649738,1729595151636,-153.0,0.00090411,120]
[340649739,1729595151656,-153.0,0.00090411,120]
[340649740,1729595151676,-153.0,0.00090411,120]
[340649741,1729595151696,-153.0,0.00090411,120]
[340649742,1729595151716,-153.0,0.00090411,120]
[340649743,1729595151735,-153.0,0.00090411,120]
[340649744,1729595151755,-153.0,0.00090411,120]
[340649745,1729595151775,-153.0,0.00090411,120]
[340649746,1729595151795,-153.0,0.00090411,120]
[340649747,1729595151815,-153.0,0.00090411,120]
[340649748,1729595151836,-153.0,0.00090411,120]
[340649749,1729595151856,-153.0,0.00090411,120]
[340649750,1729595151877,-153.0,0.00090411,120]
[340649751,1729595151896,-153.0,0.00090411,120]
[340649752,1729595151916,-153.0,0.00090411,120]
[340649753,1729595151937,-153.0,0.00090411,120]
[340649754,1729595151957,-153.0,0.00090411,120]
[340649755,1729595151977,-153.0,0.00090411,120]
[340649756,1729595151996,-153.0,0.00090411,120]
[340649757,1729595152016,-153.0,0.00090411,120]
[340649758,1729595152036,-153.0,0.00090411,120]
[340649759,1729595152056,-153.0,0.00090411,120]
[340649760,1729595152076,-153.0,0.00090411,120]
[340649761,1729595152100,-153.0,0.00090411,120]
[340649762,1729595152120,-153.0,0.00090411,120]
[340649763,1729595152140,-153.0,0.00090411,120]
[340649764,1729595152165,-153.0,0.00090411,120]
[340649765,1729595152185,-153.0,0.00090411,120]
[340649766,1729595152205,-446.0,0.00090411,120]
[340649767,1729595152225,-446.0,0.00090411,120]
[340649768,1729595152247,-446.0,0.00090411,120]
[340649769,1729595152266,-446.0,0.00090411,120]
[340649770,1729595152286,-446.0,0.00090411,120]
[340649771,1729595152305,-446.0,0.00090411,120]
[340649772,1729595152326,-446.0,0.00090411,120]
[340649773,1729595152346,-446.0,0.00090411,120]
[340649774,1729595152365,-446.0,0.00090411,120]
[340649775,1729595152384,-446.0,0.00090411,120]
[340649776,1729595152404,-446.0,0.00090411,120]
[340649777,1729595152424,-446.0,0.00090411,120]
[340649778,1729595152445,-446.0,0.00090411,120]
[340649779,1729595152466,-446.0,0.00090411,120]
[340649780,1729595152487,-446.0,0.00090411,120]
[340649781,1729595152508,-446.0,0.00090411,120]
[340649782,1729595152531,-446.0,0.00090411,120]
[340649783,1729595152551,-446.0,0.00090411,120]
[340649784,1729595152571,-446.0,0.00090411,120]
[340649785,1729595152590,-446.0,0.00090411,120]
[340649786,1729595152611,-446.0,0.00090411,120]
[340649787,1729595152630,-446.0,0.00090411,120]
[340649788,1729595152650,-446.0,0.00090411,120]
[340649789,1729595152669,-446.0,0.00090411,120]
[340649790,1729595152780,-446.0,0.00090411,120]
[340649791,1729595152801,-446.0,0.00090411,120]
[340649792,1729595152821,-446.0,0.00090411,120]
[340649793,1729595152841,-446.0,0.00090411,120]
[340649794,1729595152862,-446.0,0.00090411,120]
[340649795,1729595152882,-446.0,0.00090411,120]
[340649796,1729595152902,-446.0,0.00090411,120]
[340649797,1729595152922,-446.0,0.00090411,120]
[340649798,1729595152941,-446.0,0.00090411,120]
[340649799,1729595152960,-446.0,0.00090411,120]
[340649800,1729595152980,-446.0,0.00090411,120]
[340649801,1729595153000,-446.0,0.00090411,120]
[340649802,1729595153020,-446.0,0.00090411,120]
[340649803,1729595153039,-446.0,0.00090411,120]
[340649804,1729595153058,-446.0,0.00090411,120]
[340649805,1729595153078,-446.0,0.00090411,120]
[340649806,1729595153098,-446.0,0.00090411,120]
[340649807,1729595153118,-446.0,0.00090411,120]
[340649808,1729595153137,-446.0,0.00090411,120]
[340649809,1729595153160,-446.0,0.00090411,120]
[340649810,1729595153180,-446.0,0.00090411,120]
[340649811,1729595153200,-446.0,0.00090411,120]
[340649812,1729595153220,-446.0,0.00090411,120]
[340649813,1729595153247,-446.0,0.00090411,120]
[340649814,1729595153270,-446.0,0.00090411,120]
[340649815,1729595153290,-446.0,0.00090411,120]
[340649816,1729595153310,-446.0,0.00090411,120]
[340649817,1729595153330,-446.0,0.00090411,120]
[340649818,1729595153350,-446.0,0.00090411,120]
[340649819,1729595153370,-446.0,0.00090411,120]
[340649820,1729595153390,-446.0,0.00090411,120]
[340649821,1729595153412,-446.0,0.00090411,120]
[340649822,1729595153432,-446.0,0.00090411,120]
[340649823,1729595153452,-446.0,0.00090411,120]
[340649824,1729595153472,-446.0,0.00090411,120]
[340649825,1729595153492,-446.0,0.00090411,120]
[340649826,1729595153511,-117.18157765,0.00090411,120]
[340649827,1729595192102,-280.0,0.0008,120]
[340649828,1729595192123,-2581.74484356,0.0009,120]
[340649829,1729595234319,-872.7,0.0008,30]
[340649830,1729595234345,-200.0,0.00084,120]
[340649831,1729595234367,-328.81842235,0.00090411,120]
[340649832,1729595234390,-446.0,0.00090411,120]
[340649833,1729595234413,-446.0,0.00090411,120]
[340649834,1729595234435,-446.0,0.00090411,120]
[340649835,1729595234457,-446.0,0.00090411,120]
[340649836,1729595234479,-446.0,0.00090411,120]
[340649837,1729595234500,-446.0,0.00090411,120]
[340649838,1729595234521,-446.0,0.00090411,120]
[340649839,1729595234543,-446.0,0.00090411,120]
[340649840,1729595234565,-446.0,0.00090411,120]
[340649841,1729595234602,-446.0,0.00090411,120]
[340649842,1729595234624,-446.0,0.00090411,120]
[340649843,1729595234646,-446.0,0.00090411,120]
[340649844,1729595234667,-446.0,0.00090411,120]
[340649845,1729595234688,-446.0,0.00090411,120]
[340649846,1729595234709,-446.0,0.00090411,120]
[340649847,1729595234731,-446.0,0.00090411,120]
[340649848,1729595234751,-446.0,0.00090411,120]
[340649849,1729595234772,-446.0,0.00090411,120]
[340649850,1729595234793,-446.0,0.00090411,120]
[340649851,1729595234815,-446.0,0.00090411,120]
[340649852,1729595234835,-446.0,0.00090411,120]
[340649853,1729595234856,-446.0,0.00090411,120]
[340649854,1729595234878,-153.0,0.00090411,120]
[340649855,1729595234899,-153.0,0.00090411,120]
[340649856,1729595234920,-153.0,0.00090411,120]
[340649857,1729595234942,-153.0,0.00090411,120]
[340649858,1729595234963,-153.0,0.00090411,120]
[340649859,1729595234983,-153.0,0.00090411,120]
[340649860,1729595235004,-153.0,0.00090411,120]
[340649861,1729595235024,-153.0,0.00090411,120]
[340649862,1729595235045,-153.0,0.00090411,120]
[340649863,1729595235065,-153.0,0.00090411,120]
[340649864,1729595235086,-153.0,0.00090411,120]
[340649865,1729595235107,-153.0,0.00090411,120]
[340649866,1729595235127,-153.0,0.00090411,120]
[340649867,1729595235148,-153.0,0.00090411,120]
[340649868,1729595235170,-153.0,0.00090411,120]
[340649869,1729595235192,-153.0,0.00090411,120]
[340649870,1729595235215,-153.0,0.00090411,120]
[340649871,1729595235235,-153.0,0.00090411,120]
[340649872,1729595235258,-153.0,0.00090411,120]
[340649873,1729595235279,-153.0,0.00090411,120]
[340649874,1729595235300,-153.0,0.00090411,120]
[340649875,1729595235321,-153.0,0.00090411,120]
[340649876,1729595235343,-153.0,0.00090411,120]
[340649877,1729595235370,-499.99,0.00091188,2]
[340649878,1729595235391,-33365.47262333,0.00094,120]
[340649879,1729595235411,-500.0,0.00094,120]
[340649880,1729595235433,-3779.4939,0.000943,120]
[340649881,1729595235455,-160.31624852,0.00094336,28]
[340649882,1729595235475,-570.5006692,0.00094336,65]
[340649883,1729595235497,-660.69,0.0009439,120]
[340649884,1729595235520,-165.04071977,0.00094399,120]
[340649885,1729595235541,-1539.04,0.00094399,120]
[340649886,1729595235565,-500.0,0.00094399,120]
[340649887,1729595235585,-500.0,0.00094399,120]
[340649888,1729595235611,-500.0,0.00094399,120]
[340649889,1729595235633,-570.084953,0.00094399,120]
[340649890,1729595235654,-500.0,0.00094399,120]
[340649891,1729595235676,-500.0,0.00094399,120]
[340649892,1729595235697,-500.0,0.00094399,120]
[340649893,1729595235719,-500.0,0.00094399,120]
[340649894,1729595235740,-509.31252619,0.00094399,120]
[340649895,1729595235762,-500.0,0.00094399,120]
[340649896,1729595235783,-499.26470338,0.00094399,120]
[340649897,1729595235803,-625.0,0.00094399,120]
[340649898,1729595235824,-500.0,0.00094399,120]
[340649899,1729595235847,-48141.92575401,0.000944,30]
[340649900,1729595248107,-500.0,0.00089,30]
[340649901,1729595248129,-2988.8763,0.000939,120]
[340649902,1729595248151,-500.0,0.00094399,120]
[340649903,1729595248174,-31942.04745121,0.000944,30]
[340649904,1729595253123,-6138.7459196,0.000944,30]
[340649905,1729595266326,-13444.64190005,0.00094,120]
[340649906,1729595266347,-1040.79863814,0.00094399,120]
[340649907,1729595266372,-500.0,0.00094399,120]
[340649908,1729595266392,-184014.55946181,0.000944,30]
[340649915,1729595416203,-500.0,0.00085,90]
[340649916,1729595416227,-500.0,0.00088,120]
[340649917,1729595416254,-200.0,0.0009,120]
[340649918,1729595416277,-500.0,0.00092,90]
[340649919,1729595416301,-6727.9653,0.000938,120]
[340649920,1729595416324,-7672.04848279,0.000939,120]
[340649921,1729595416348,-189.47952774,0.000943,120]
[340649922,1729595416377,-4168.05,0.00094399,120]
[340649923,1729595416401,-500.0,0.00094399,120]
[340649924,1729595416425,-500.0,0.00094399,120]
[340649925,1729595416448,-500.0,0.00094399,120]
[340649926,1729595416471,-500.0,0.00094399,120]
[340649927,1729595416496,-500.0,0.00094399,120]
[340649928,1729595416519,-625.0,0.00094399,120]
[340649929,1729595416543,-29762.72141337,0.000944,30]
[340649930,1729595416567,-1250.0,0.00094673,120]
[340649931,1729595416591,-1875.0,0.00094947,120]
[340649932,1729595416619,-2500.0,0.00095221,120]
[340649933,1729595416643,-3125.0,0.00095495,120]
[340649934,1729595416666,-1539.04,0.00095589,120]
[340649935,1729595416689,-500.0,0.00095589,120]
[340649936,1729595416712,-500.0,0.00095589,120]
[340649937,1729595416737,-500.0,0.00095589,120]
[340649938,1729595416761,-500.0,0.00095589,120]
[340649939,1729595416784,-500.0,0.00095589,120]
[340649940,1729595416806,-4168.05,0.00095589,120]
[340649941,1729595416830,-750.0,0.00095599,120]
[340649942,1729595416853,-500.0,0.00095599,120]
[340649943,1729595416876,-159.54089885,0.00095626,5]
[340649944,1729595416899,-338.5977184,0.00095626,60]
[340649945,1729595416924,-3750.0,0.00095769,120]
[340649946,1729595416949,-4375.0,0.00096043,120]
[340649947,1729595416972,-168.555,0.00096077,120]
[340649948,1729595416997,-1500.0,0.00096147,120]
[340649949,1729595417022,-1249.23012658,0.00096317,120]
[340649950,1729595417046,-2250.0,0.00096695,120]
[340649951,1729595417072,-1029.66,0.00096699,120]
[340649952,1729595417105,-127000.0,0.0009704,120]
[340649953,1729595417133,-6627.06153227,0.00097142,15]
[340649964,1729595432323,-510.18634672,0.0004039,120]
[340649965,1729595432333,-9828.78511074,0.00097142,15]
[340649966,1729595432343,-1539.04,0.00097242,120]
[340649967,1729595432352,-504.16194449,0.00097242,120]
[340649968,1729595432362,-500.0,0.00097242,120]
[340649969,1729595432372,-500.0,0.00097242,120]
[340649970,1729595432385,-1313.10946046,0.00097242,120]
[340649971,1729595432396,-332.75527609,0.00097242,120]
[340649972,1729595432443,-13.30571417,0.00097242,120]
[340649973,1729595432455,-1200.0,0.00097242,120]
[340649974,1729595432470,-500.0,0.00097242,120]
[340649975,1729595432482,-808.87954928,0.00097242,120]
[340649976,1729595432491,-422.97177113,0.00097243,120]
[340649977,1729595432503,-311.84172578,0.00097243,120]
[340649978,1729595432514,-424.87953154,0.00097243,120]
[340649979,1729595432629,-1840.30697155,0.00097243,120]
[340649980,1729595432639,-3750.0,0.00097791,120]
[340649981,1729595432648,-500.0,0.00097999,120]
[340649982,1729595432657,-500.0,0.00098099,120]
[340649983,1729595432666,-500.0,0.00098099,120]
[340649984,1729595432676,-500.0,0.00098099,120]
[340649986,1729595432684,-514.05,0.00098099,120]
[340649987,1729595432694,-1743.25733559,0.00098339,120]
[340649989,1729595432703,-500.0,0.0009894,120]
[340649991,1729595432712,-1029.66,0.00098979,120]
[340649993,1729595432722,-1029.66,0.00098989,120]
[340649995,1729595432731,-503.48049166,0.00098996,120]
[340649997,1729595432740,-500.0,0.00098996,120]
[340649999,1729595432750,-500.0,0.00098996,120]
[340650001,1729595432759,-514.05,0.00098996,120]
[340650003,1729595432769,-1204.74567873,0.00099,45]
[340650005,1729595432779,-258.36497239,0.00099,45]
[340650007,1729595432791,-413.21193929,0.00099,45]
[340650009,1729595432802,-538.29120614,0.00099,45]
[340650012,1729595438504,-262.77197007,0.00099,45]
[340650014,1729595439552,-127571.49737091,0.00099,45]
[340650015,1729595439568,-21505.49999,0.00099,45]
[340650025,1729595440313,-505.2624392,0.00099,45]
[340650026,1729595440324,-12674.41551221,0.00099,45]
[340650027,1729595440399,-4042.37854923,0.00099,45]
[340650028,1729595440410,-884.16644664,0.00099,45]
[340650029,1729595440422,-5405.45253584,0.00099,45]
[340650030,1729595440433,-1086.00001,0.00099,45]
[340650031,1729595440593,-71229.33721343,0.00099,45]
[340650032,1729595440613,-1600.65,0.00099,45]
[340650033,1729595440624,-2311.24889625,0.00099,45]
[340650034,1729595440635,-266.56,0.00099,45]
[340650035,1729595440659,-588.2445,0.00099,45]
[340650036,1729595440670,-5242.21256257,0.00099,45]
[340650037,1729595440681,-6058.74999999,0.00099,45]
[340650045,1729595443304,-270.791506,0.00098505,30]
[340650046,1729595443313,-112.40869793,0.00099,45]
[340650049,1729595443352,-759.5749,0.00099,45]
[340650050,1729595443388,-6007.03681859,0.00099,45]
[340650051,1729595443403,-17432.02808209,0.00099,45]
[340650052,1729595443557,-490.45,0.00099,45]
[340650053,1729595443569,-5630.95657849,0.00099,45]
[340650054,1729595443609,-472.8632825,0.00099,45]
[340650081,1729595445047,-87556.27191631,0.00099,45]
[340650088,1729595446346,-558.60398457,0.00099,45]
[340650089,1729595446359,-1781.2507,0.00099,45]
[340650090,1729595446386,-729.12371714,0.00099,45]
[340650091,1729595446398,-453.46218221,0.00099,45]
[340650117,1729595447004,-219686.5040849,0.00099,45]
[340650119,1729595447016,-1097.57852725,0.00099,45]
[340650121,1729595447029,-446.61602976,0.00099,45]
[340650124,1729595447040,-585.71,0.00099,45]
[340650126,1729595447051,-1398.4404694,0.00099,45]
[340650128,1729595447062,-1034.05360558,0.00099,45]
[340650130,1729595447074,-5884.21188928,0.00099,45]
[340650132,1729595447086,-4919.07120143,0.00099,45]
[340650141,1729595447175,-740.40033588,0.00099,45]
[340650144,1729595447201,-12169.42837877,0.00099,45]
[340650210,1729595594214,174.24,0.00010959,2]
[340650455,1729595911516,500.0,0.0001,120]
[340650460,1729595971912,497.96,0.0001,120]
[340650510,1729596198444,170.11,0.00015342,2]
[340650512,1729596308263,32736.65,0.00011,2]
[340650513,1729596377475,250.0,0.0001,2]
[340650552,1729596631618,-641.43342479,0.000109,2]
[340650553,1729596631629,-10584.14304269,0.000109,2]
[340650554,1729596631640,-3469.51603652,0.000109,2]
[340650555,1729596631651,-781.51629935,0.000109,2]
[340650567,1729596637658,-771.26757877,0.000109,2]
[340650568,1729596637670,-3227.97602687,0.000109,2]
[340650569,1729596637700,-4072.01193693,0.000109,2]
[340650570,1729596637710,-200.94610074,0.000109,2]
[340650571,1729596637720,-933.83702151,0.000109,2]
[340650572,1729596637738,-911.40926582,0.000109,2]
[340650573,1729596637754,-292.9817013,0.000109,2]
[340650574,1729596637766,-1018.58172369,0.000109,2]
[340650575,1729596637776,-2969.33075036,0.000109,2]
[340650576,1729596637786,-300.27990883,0.00010999,2]
[340650577,1729596637796,-227.78126528,0.00010999,2]
[340650578,1729596637808,-272.21873472,0.00010999,2]
[340650579,1729596637818,-500.0,0.00010999,2]
[340650580,1729596637828,-9.17840276,0.00010999,2]
[340650581,1729596637839,-446.35645728,0.00010999,2]
[340650582,1729596637849,-500.0,0.00010999,2]
[340650583,1729596637859,-500.0,0.00010999,2]
[340650584,1729596637868,-500.0,0.00010999,2]
[340650585,1729596637878,-3739.97817928,0.00011,2]
[340650586,1729596637890,-1953.68646312,0.00011,2]
[340650587,1729596638020,-40501.45015,0.00011,2]
[340650588,1729596638033,-307.4777073,0.00011,2]
[340650593,1729596639545,-1942.75788024,0.00011,2]
[340650594,1729596639588,-16839.4006,0.00011,2]
[340650595,1729596639632,-852.05876134,0.00011,2]
[340650596,1729596639644,-2100.05512954,0.00011,2]
[340650597,1729596639656,-4128.97177876,0.00011,2]
[340650598,1729596639668,-377.63072068,0.00011,2]
[340650599,1729596639679,-649.02,0.00011,2]
[340650600,1729596639691,-741.26170525,0.00011,2]
[340650601,1729596639703,-728.32,0.00011,2]
[340650602,1729596639715,-40412.85223734,0.00011,2]
[340650603,1729596639727,-2929.0557936,0.00011,2]
[340650604,1729596639739,-818.55042668,0.00011,2]
[340650605,1729596639750,-673.50916,0.00011,2]
[340650606,1729596639767,-35627.62925012,0.00011,2]
[340650654,1729596642686,-1100.00589195,0.00011,2]
[340650659,1729596642727,-3974.70496534,0.00011,2]
[340650670,1729596985078,23900.0,9.97e-05,2]
[340650671,1729596988731,-196.18470758,0.0001079,2]
[340650672,1729596988779,-202.62284656,0.000108,2]
[340650673,1729596988829,-200.94610074,0.000109,2]
[340650674,1729596988878,-921.6190858,0.000109,2]
[340650675,1729596988927,-4445.94538162,0.000109,2]
[340650676,1729596988975,-2454.63498463,0.00010914,2]
[340650677,1729596989025,-257.92203496,0.00010929,2]
[340650678,1729596989083,-257.92203496,0.00010943,2]
[340650679,1729596989137,-257.92203496,0.00010957,2]
[340650680,1729596989191,-396.67,0.00010959,2]
[340650681,1729596989319,-349.12,0.00010959,2]
[340650682,1729596989375,-257.92203496,0.00010971,2]
[340650683,1729596989426,-150.0,0.00010972,2]
[340650684,1729596989475,-500.0,0.00010973,2]
[340650685,1729596989525,-499.99,0.00010973,2]
[340650686,1729596989579,-4003.58,0.00010973,2]
[340650687,1729596989629,-500.0,0.00010973,2]
[340650688,1729596989681,-257.92203496,0.00010986,2]
[340650689,1729596989732,-500.0,0.00010999,2]
[340650690,1729596989782,-500.0,0.00010999,2]
[340650691,1729596989836,-500.0,0.00010999,2]
[340650692,1729596989888,-286.90219236,0.00010999,2]
[340650693,1729596989940,-248.76059554,0.00011,2]
[340650694,1729596989994,-4781853.41393037,0.00011,2]
[340650695,1729596992583,1742.92237013,0.00010999,3]
[340650696,1729596993900,300.0,0.000103,3]
[340650697,1729596996012,600.0,0.000104,3]
[340650698,1729596998261,1000.0,0.000105,3]
[340650699,1729597000289,1300.0,0.000106,3]
[340650700,1729597002386,1700.0,0.000107,3]
[340650701,1729597004483,300.0,0.000108,3]
[340650702,1729597006605,300.0,0.000109,3]
[340650703,1729597126575,-170.962,0.0001078,2]
[340650704,1729597126625,-579.316,0.0001078,2]
[340650705,1729597126672,-801.67947446,0.000109,2]
[340650706,1729597126715,-24157.56330831,0.000109,2]
[340650707,1729597126758,-300.09258828,0.000109,2]
[340650708,1729597126802,-272.705158,0.000109,2]
[340650709,1729597126844,-500.0,0.00010973,2]
[340650710,1729597126886,-390.60507769,0.00010973,2]
[340650711,1729597126930,-159.54089885,0.00010973,2]
[340650712,1729597126971,-500.0,0.00010999,2]
[340650713,1729597127014,-271.90348268,0.00010999,2]
[340650714,1729597127054,-649.64159361,0.00010999,2]
[340650715,1729597127097,-500.0,0.00010999,2]
[340650716,1729597127139,-223.23200542,0.00010999,2]
[340650717,1729597127299,-623.4200796,0.00010999,2]
[340650718,1729597127347,-969899.3383331,0.00011,2]
[340650720,1729597520788,150.0,9.888e-05,2]
[340650721,1729597521093,150.0,9.966e-05,2]
[340650722,1729597521402,150.0,0.00010045,2]
[340650723,1729597521731,150.0,0.00010123,2]
[340650724,1729597522137,150.0,0.00010202,2]
[340650725,1729597522453,150.0,0.0001028,2]
[340650726,1729597522792,150.0,0.00010359,2]
[340650727,1729597532337,-325.4722801,0.00010406,2]
[340650735,1729597758136,160.9,9.143e-05,2]
[340650747,1729597831670,-14.9977199,0.00010406,2]
[340650750,1729597831679,-150.0,0.00010437,2]
[340650752,1729597831689,-150.0,0.00010515,2]
[340650753,1729597831698,-141.33656015,0.00010594,2]
[340650759,1729597831736,-8.66343985,0.00010594,2]
[340650761,1729597831746,-150.0,0.00010672,2]
[340650763,1729597831758,-150.0,0.00010751,2]
[340650765,1729597831769,-325.4722801,0.000108,2]
[340650767,1729597831778,-150.0,0.00010829,2]
[340650768,1729597831787,-9.61428005,0.00010899,2]
[340650771,1729597831799,-140.38571995,0.00010899,2]
[340650773,1729597831808,-1709.61428005,0.000109,2]
[340650775,1729597831820,-300.70991995,0.000109,2]
[340650776,1729597831829,-175.42510607,0.000109,2]
[340650777,1729597831839,-203.66185398,0.000109,2]
[340650778,1729597831850,-750.96734602,0.000109,2]
[340650779,1729597831859,-158.64029893,0.000109,2]
[340650780,1729597831870,-21741.80697747,0.000109,2]
[340650781,1729597831880,-238.61701325,0.000109,2]
[340650782,1729597831889,-299.99,0.000109,2]
[340650783,1729597831899,-499.99,0.000109,2]
[340650784,1729597831909,-1000.0,0.000109,2]
[340650785,1729597831921,-150.0,0.00010908,2]
[340650786,1729597831930,-150.0,0.00010959,2]
[340650787,1729597831940,-338.5977184,0.00010973,2]
[340650788,1729597831950,-160.42541057,0.00010973,2]
[340650789,1729597831960,-500.0,0.00010973,2]
[340650790,1729597831969,-273.91423427,0.00010986,2]
[340650791,1729597831979,-197.65969227,0.0001099,2]
[340650792,1729597831990,-210314.03527006,0.00011,2]
[340650794,1729597832001,-2697.1634484,0.00011,2]
[340650795,1729597832020,-4729.43617998,0.00011,2]
[340650796,1729597832032,-170990.96094,0.00011,2]
[340650797,1729597832053,-962.78095166,0.00011,2]
[340650799,1729597832065,-22253.86192698,0.00011,2]